fUSD/lending_fUSD_20251128
["ID","MTS","AMOUNT","RATE_DAILY","PERIOD"]
[395019104,1764340238993,-150.69072968,0.0001699,2]
[395019105,1764340239012,-150.0,0.0001699,2]
[395019106,1764340239031,-150.0,0.0001699,2]
[395019107,1764340239050,-150.0,0.0001699,2]
[395019108,1764340239069,-150.0,0.0001699,2]
[395019109,1764340239085,-150.0,0.0001699,2]
[395019110,1764340239104,-150.0,0.0001699,2]
[395019111,1764340239119,-150.0,0.0001699,2]
[395019112,1764340239136,-150.0,0.0001699,2]
[395019113,1764340239153,-500.0,0.0001699,2]
[395019114,1764340239171,-150.0,0.0001699,2]
[395019115,1764340239188,-500.0,0.0001699,2]
[395019116,1764340239204,-500.0,0.0001699,2]
[395019117,1764340239220,-500.0,0.00016998,2]
[395019118,1764340239237,-500.0,0.00016998,2]
[395019119,1764340239253,-500.0,0.00016998,2]
[395019120,1764340239268,-512.58755367,0.00016998,2]
[395019121,1764340239285,-153304.3479905,0.00016999,2]
[395019122,1764340239300,-12700.72396746,0.00016999,2]
[395019127,1764340240386,-610.485,0.00016999,2]
[395019128,1764340240397,-1435.01372745,0.00016999,2]
[395019129,1764340240443,-606.5714513,0.00016999,2]
[395019130,1764340240455,-825.80335874,0.00016999,2]
[395019131,1764340240466,-1399.95,0.00016999,2]
[395019132,1764340240477,-585.20333733,0.00016999,2]
[395019133,1764340240488,-507.96196028,0.00016999,2]
[395019134,1764340240499,-224280.6616291,0.00016999,2]
[395019135,1764340240541,-9999.27577681,0.00016999,2]
[395019136,1764340240553,-14907.2421685,0.00016999,2]
[395019137,1764340240602,-813.8673398,0.00016999,2]
[395019138,1764340241264,-371.11170021,0.00016573,2]
[395019139,1764340241276,-128.88829979,0.00016573,2]
[395019140,1764340241285,-375.10783869,0.00016873,2]
[395019141,1764340241298,-124.89216131,0.00016873,2]
[395019142,1764340241308,-500.94979944,0.00016873,2]
[395019143,1764340241319,-504.5170803,0.00016873,2]
[395019144,1764340241328,-190556.64394443,0.00016999,2]
[395019145,1764340241546,-500.0,0.00016999,2]
[395019146,1764340241555,-307.01162033,0.00016999,2]
[395019147,1764340241567,-151.0,0.00016999,2]
[395019148,1764340241577,-21209.1209471,0.00016999,2]
[395019149,1764340241588,-500.0,0.00016999,2]
[395019150,1764340241598,-500.0,0.00016999,2]
[395019151,1764340241607,-500.0,0.00016999,2]
[395019152,1764340241617,-540.71917716,0.00016999,2]
[395019153,1764340241626,-366.99815821,0.00016999,2]
[395019154,1764340241635,-159.766743,0.00016999,2]
[395019155,1764340241646,-384.130264,0.00016999,2]
[395019156,1764340241657,-151.0,0.00016999,2]
[395019157,1764340241668,-151.0,0.00016999,2]
[395019158,1764340241677,-384.130264,0.00016999,2]
[395019159,1764340241686,-384.130264,0.00016999,2]
[395019160,1764340241696,-384.130264,0.00016999,2]
[395019161,1764340241707,-151.0,0.00016999,2]
[395019162,1764340241716,-217.01825676,0.00016999,2]
[395019163,1764340241726,-624.636445,0.00016999,2]
[395019164,1764340241739,-624.636445,0.00016999,2]
[395019165,1764340241749,-624.636445,0.00016999,2]
[395019166,1764340241759,-624.636445,0.00016999,2]
[395019167,1764340241769,-508.84875316,0.00016999,2]
[395019168,1764340241778,-151.0,0.00016999,2]
[395019169,1764340241787,-151.0,0.00016999,2]
[395019170,1764340241796,-170.7668536,0.00016999,2]
[395019171,1764340241805,-477.104085,0.00016999,2]
[395019172,1764340241815,-477.104085,0.00016999,2]
[395019173,1764340241824,-477.104085,0.00016999,2]
[395019174,1764340241834,-477.104085,0.00016999,2]
[395019175,1764340241843,-151.0,0.00016999,2]
[395019176,1764340241853,-151.0,0.00016999,2]
[395019177,1764340241862,-151.0,0.00016999,2]
[395019178,1764340241871,-151.0,0.00016999,2]
[395019179,1764340241880,-208.028594,0.00016999,2]
[395019180,1764340241890,-151.0,0.00016999,2]
[395019181,1764340241899,-284.738152,0.00016999,2]
[395019182,1764340241908,-151.0,0.00016999,2]
[395019183,1764340241918,-151.0,0.00016999,2]
[395019184,1764340241928,-171.773412,0.00016999,2]
[395019185,1764340241937,-151.0,0.00016999,2]
[395019186,1764340241947,-151.0,0.00016999,2]
[395019187,1764340241956,-151.0,0.00016999,2]
[395019188,1764340241966,-151.0,0.00016999,2]
[395019189,1764340241976,-151.0,0.00016999,2]
[395019190,1764340241986,-151.0,0.00016999,2]
[395019191,1764340241996,-151.0,0.00016999,2]
[395019192,1764340242006,-151.0,0.00016999,2]
[395019193,1764340242015,-151.0,0.00016999,2]
[395019194,1764340242025,-151.0,0.00016999,2]
[395019195,1764340242034,-151.0,0.00016999,2]
[395019196,1764340242043,-151.0,0.00016999,2]
[395019197,1764340242052,-241.177475,0.00016999,2]
[395019198,1764340242063,-168.692192,0.00016999,2]
[395019199,1764340242074,-151.0,0.00016999,2]
[395019200,1764340242083,-151.0,0.00016999,2]
[395019201,1764340242092,-151.0,0.00016999,2]
[395019202,1764340242102,-151.0,0.00016999,2]
[395019203,1764340242111,-151.0,0.00016999,2]
[395019204,1764340242120,-151.0,0.00016999,2]
[395019205,1764340242129,-151.0,0.00016999,2]
[395019206,1764340242138,-151.0,0.00016999,2]
[395019207,1764340242147,-151.0,0.00016999,2]
[395019208,1764340242156,-151.0,0.00016999,2]
[395019209,1764340242166,-464.568981,0.00016999,2]
[395019210,1764340242175,-464.568981,0.00016999,2]
[395019211,1764340242184,-432764.69627903,0.00017,2]
[395019212,1764340242323,-35378.34167999,0.00017,2]
[395019213,1764340242335,-57746.67870338,0.00017,2]
[395019214,1764340242347,-2163.54,0.00017,2]
[395019216,1764340242357,-2336.0,0.00017,2]
[395019221,1764340243486,-356.94828119,0.00016999,2]
[395019222,1764340243497,-107.62069981,0.00016999,2]
[395019223,1764340243506,-464.568981,0.00016999,2]
[395019224,1764340243516,-464.568981,0.00016999,2]
[395019225,1764340243526,-464.568981,0.00016999,2]
[395019226,1764340243535,-784.30556985,0.00017,2]
[395019227,1764340243549,-3169.50055999,0.00017,2]
[395019231,1764340243747,-1613.3279235,0.00017,2]
[395019232,1764340243759,-480.0,0.00017,2]
[395019234,1764340243770,-1598.05390316,0.00017,2]
[395019243,1764340244001,-464.568981,0.00016999,2]
[395019245,1764340244012,-185361.95832266,0.00017,2]
[395019252,1764340245679,-387.73641097,0.00016999,2]
[395019253,1764340245894,-7.25141183,0.00016999,2]
[395019254,1764340245906,-69.5811582,0.00016999,2]
[395019255,1764340245916,-214279.9817672,0.00017,2]
[395019256,1764340245941,-363.19177753,0.00017,2]
[395020530,1764340562271,601.45,0.00013699,2]
[395020531,1764340762102,164.93,0.00019178,30]
[395020532,1764340763087,246.81,7.961e-05,2]
[395020533,1764340763466,246.81,8.38e-05,2]
[395020534,1764340763673,246.81,8.799e-05,2]
[395020535,1764340764080,246.81,9.218e-05,2]
[395020536,1764340764353,246.81,9.638e-05,2]
[395020537,1764340764558,246.81,0.00010057,2]
[395020538,1764340764780,246.81,0.00010476,2]
[395020539,1764340764996,246.81,0.00010895,2]
[395020540,1764340765209,246.81,0.00011314,2]
[395020541,1764340765408,246.81,0.00011733,2]
[395020542,1764340765638,246.81,0.00012152,2]
[395020543,1764340765836,246.81,0.00012571,2]
[395020544,1764340766074,246.81,0.0001299,2]
[395020545,1764340766292,246.81,0.00013409,2]
[395020546,1764340766521,246.81,0.00013828,2]
[395020547,1764340766748,246.81,0.00014247,2]
[395020548,1764340768044,246.81,0.00014666,2]
[395020578,1764341142348,-180.88809273,0.00015085,2]
[395020579,1764341232137,414.9764087,0.00022,30]
[395020580,1764341408248,375.0,0.0002244,120]
[395020581,1764341409522,375.0,0.00023562,120]
[395020582,1764341410984,375.0,0.0002474,120]
[395020592,1764341431711,-65.92190727,0.00015085,2]
[395020594,1764341431721,-150.0,0.00015288,2]
[395020596,1764341431730,-150.0,0.00015288,2]
[395020598,1764341431739,-150.0,0.00015288,2]
[395020599,1764341431749,-1.09505052,0.00015288,2]
[395020602,1764341431836,-148.90494948,0.00015288,2]
[395020603,1764341431846,-151.28767977,0.00015288,2]
[395020604,1764341431855,-150.0,0.00015288,2]
[395020605,1764341431864,-277.46546768,0.00015342,2]
[395020606,1764341431875,-13.9408677,0.00015342,2]
[395020607,1764341431892,-246.81,0.00015504,2]
[395020608,1764341431901,-730.2285223,0.00015534,2]
[395020609,1764341431914,-469.7714777,0.00015534,2]
[395020610,1764341431924,-3668.35,0.00015535,2]
[395020611,1764341431934,-300.0,0.00015548,2]
[395020612,1764341431944,-999.0,0.0001555,3]
[395020613,1764341431954,-250.0,0.00015572,2]
[395020614,1764341431964,-714.75,0.00015922,2]
[395020615,1764341431974,-246.81,0.00015923,2]
[395020616,1764341431983,-584.20126469,0.00016052,2]
[395020617,1764341431993,-150.8,0.00016113,2]
[395020618,1764341432003,-610.0,0.00016133,2]
[395020619,1764341432013,-250.0,0.00016148,2]
[395020620,1764341432023,-4196.24,0.00016149,2]
[395020621,1764341432033,-150.99,0.00016149,2]
[395020622,1764341432043,-3442.94725761,0.00016149,2]
[395020623,1764341432083,-6181.21274239,0.00016149,2]
[395020624,1764341432094,-5769.97796645,0.00016149,2]
[395020625,1764341432106,-928.52587715,0.00016149,2]
[395020626,1764341432135,-3301.4861564,0.00016149,2]
[395020627,1764341432145,-150.99,0.00016149,2]
[395020628,1764341432155,-7382.94749644,0.00016149,2]
[395020629,1764341432167,-784.99999989,0.00016149,2]
[395020630,1764341432180,-1832.04250367,0.00016149,2]
[395020631,1764341432192,-598.01,0.00016152,2]
[395020632,1764341432203,-1727.82,0.00016152,2]
[395020633,1764341432213,-18857.62,0.00016152,2]
[395020634,1764341432223,-9999.99,0.00016152,2]
[395020635,1764341432234,-1288.42,0.00016152,2]
[395020636,1764341432245,-299.99,0.00016152,4]
[395020637,1764341432254,-9999.99,0.00016152,2]
[395020638,1764341432270,-999.99,0.00016152,2]
[395020639,1764341432281,-500.69719188,0.00016173,2]
[395020640,1764341432292,-500.0,0.00016173,2]
[395020641,1764341432304,-500.0,0.00016173,2]
[395020642,1764341432314,-500.0,0.00016173,2]
[395020643,1764341432324,-500.81532555,0.00016173,2]
[395020644,1764341432335,-500.0,0.00016173,2]
[395020645,1764341432344,-500.33790784,0.00016173,2]
[395020646,1764341432354,-500.0,0.00016173,2]
[395020647,1764341432364,-501.0656298,0.00016173,2]
[395020648,1764341432373,-500.64137851,0.00016173,2]
[395020649,1764341432382,-500.0,0.00016173,2]
[395020650,1764341432392,-500.0,0.00016427,2]
[395020651,1764341432402,-500.0,0.00016427,2]
[395020652,1764341432411,-500.0,0.00016427,2]
[395020653,1764341432421,-500.0,0.00016427,2]
[395020654,1764341432431,-513.00826972,0.00016427,2]
[395020655,1764341432440,-500.0,0.00016427,2]
[395020656,1764341432449,-500.0,0.00016427,2]
[395020657,1764341432459,-500.0,0.00016427,2]
[395020658,1764341432469,-500.0,0.00016427,2]
[395020659,1764341432479,-500.0,0.00016427,2]
[395020660,1764341432488,-500.0,0.00016427,2]
[395020661,1764341432498,-500.0,0.00016427,2]
[395020662,1764341432508,-335.0,0.00016427,2]
[395020663,1764341432518,-500.0,0.00016427,2]
[395020664,1764341432528,-500.0,0.00016427,2]
[395020665,1764341432538,-293.33463653,0.00016427,2]
[395020666,1764341432548,-151.0,0.00016428,2]
[395020667,1764341432558,-611.69053907,0.00016438,2]
[395020668,1764341432568,-4734.92946357,0.00016438,2]
[395020669,1764341432612,-926.885798,0.00016438,2]
[395020670,1764341432628,-359.24,0.00016438,2]
[395020671,1764341432641,-8013.68402872,0.00016438,2]
[395020677,1764341437691,-1432.22070971,0.00016438,2]
[395020678,1764341437702,-300.0,0.00016593,2]
[395020679,1764341437711,-195.0,0.00016593,2]
[395020680,1764341437722,-194.55010423,0.00016593,2]
[395020681,1764341437731,-263.27950744,0.00016593,2]
[395020682,1764341437741,-250.0,0.00016593,2]
[395020683,1764341437751,-404.79137615,0.00016721,2]
[395020684,1764341437762,-95.20862385,0.00016721,2]
[395020685,1764341437772,-502.06038014,0.00016721,2]
[395020686,1764341437781,-520.80397315,0.00016721,2]
[395020687,1764341437791,-1300.00227286,0.000168,2]
[395020688,1764341437827,-443.19861016,0.000168,2]
[395020689,1764341437837,-57.58605171,0.0001683,2]
[395020690,1764341437885,-1680.96,0.0001683,2]
[395020691,1764341437996,-1471.61766829,0.0001683,2]
[395020692,1764341438005,-861.6,0.00016855,2]
[395020693,1764341438016,-500.0,0.00016855,2]
[395020694,1764341438026,-500.0,0.00016855,2]
[395020695,1764341438035,-500.0,0.00016855,2]
[395020696,1764341438045,-500.0,0.00016855,2]
[395020697,1764341438056,-500.0,0.00016855,2]
[395020698,1764341438066,-500.0,0.00016855,2]
[395020699,1764341438075,-500.0,0.00016855,2]
[395020700,1764341438085,-500.0,0.00016855,2]
[395020701,1764341438095,-500.0,0.00016855,2]
[395020702,1764341438104,-500.0,0.00016855,2]
[395020703,1764341438113,-500.0,0.00016855,2]
[395020704,1764341438123,-500.0,0.00016855,2]
[395020705,1764341438132,-500.0,0.00016855,2]
[395020706,1764341438142,-500.0,0.00016855,2]
[395020707,1764341438152,-68.42233171,0.00016855,2]
[395020709,1764341438164,-409.78699404,0.00016855,2]
[395020716,1764341438247,-21.79067425,0.00016855,2]
[395020718,1764341438258,-500.0,0.00016855,2]
[395020720,1764341438268,-500.0,0.00016855,2]
[395020722,1764341438281,-500.0,0.00016855,2]
[395020724,1764341438292,-500.0,0.00016855,2]
[395020726,1764341438302,-500.0,0.00016855,2]
[395020728,1764341438312,-500.0,0.00016855,2]
[395020730,1764341438324,-500.0,0.00016855,2]
[395020732,1764341438334,-500.0,0.00016855,2]
[395020734,1764341438344,-500.0,0.00016855,2]
[395020736,1764341438354,-500.0,0.00016855,2]
[395020738,1764341438365,-500.0,0.00016855,2]
[395020740,1764341438375,-200.0,0.00016855,2]
[395020742,1764341438385,-200.0,0.00016855,2]
[395020744,1764341438399,-151.0,0.00016855,2]
[395020746,1764341438409,-151.0,0.00016855,2]
[395020748,1764341438419,-151.0,0.00016855,2]
[395020750,1764341438431,-151.0,0.00016855,2]
[395020752,1764341438441,-151.0,0.00016855,2]
[395020754,1764341438452,-151.0,0.00016855,2]
[395020756,1764341438463,-151.0,0.00016855,2]
[395020758,1764341438474,-200.0,0.00016855,2]
[395020760,1764341438484,-151.0,0.00016855,2]
[395020762,1764341438494,-151.0,0.00016855,2]
[395020764,1764341438505,-500.0,0.00016855,2]
[395020766,1764341438515,-151.0,0.00016855,2]
[395020768,1764341438526,-151.0,0.00016855,2]
[395020770,1764341438537,-151.0,0.00016855,2]
[395020772,1764341438547,-151.0,0.00016855,2]
[395020774,1764341438556,-923.03467558,0.00016872,2]
[395020776,1764341438566,-500.0,0.00016873,2]
[395020778,1764341438576,-161.812563,0.00016873,2]
[395020780,1764341438586,-317.5269314,0.00016873,2]
[395020782,1764341438597,-502.42417215,0.00016873,2]
[395020784,1764341438607,-160.04760155,0.00016873,2]
[395020786,1764341438617,-501.74294982,0.00016873,2]
[395020788,1764341438626,-417.79424322,0.00016873,2]
[395020790,1764341438636,-501.82355669,0.00016873,2]
[395020792,1764341438649,-500.84139495,0.00016873,2]
[395020794,1764341438659,-501.96272844,0.00016873,2]
[395020796,1764341438669,-502.17115712,0.00016873,2]
[395020798,1764341438680,-500.76393592,0.00016873,2]
[395020800,1764341438690,-206.69803376,0.00016873,2]
[395020802,1764341438699,-500.0,0.00016873,2]
[395020804,1764341438709,-500.0,0.00016873,2]
[395020806,1764341438718,-500.0,0.00016873,2]
[395020808,1764341438728,-500.0,0.00016873,2]
[395020810,1764341438738,-505.5313009,0.00016873,2]
[395020812,1764341438747,-393.51171394,0.00016873,2]
[395020813,1764341438757,-501.13898668,0.00016873,2]
[395020815,1764341438767,-481.45079703,0.00016873,2]
[395020817,1764341438776,-501.56548682,0.00016873,2]
[395020819,1764341438786,-505.12290168,0.00016873,2]
[395020822,1764341438796,-502.03566603,0.00016873,2]
[395020823,1764341438806,-504.18743369,0.00016873,2]
[395020825,1764341438816,-502.75122359,0.00016873,2]
[395020827,1764341438826,-501.2468057,0.00016873,2]
[395020829,1764341438836,-504.07492214,0.00016873,2]
[395020831,1764341438846,-538.53917609,0.00016873,2]
[395020834,1764341438857,-164.2685499,0.00016873,2]
[395020835,1764341438867,-354.46851296,0.0001689,2]
[395020838,1764341438878,-354.46851287,0.00016891,2]
[395020839,1764341438888,-354.46851287,0.00016892,2]
[395020841,1764341438899,-354.46851287,0.00016893,2]
[395020843,1764341438909,-354.46851287,0.00016894,2]
[395020845,1764341438919,-354.46851287,0.00016896,2]
[395020847,1764341438929,-354.46851287,0.00016897,2]
[395020848,1764341438939,-354.46851287,0.00016898,2]
[395020849,1764341438949,-354.46851287,0.00016899,2]
[395020850,1764341438960,-157.06603687,0.000169,2]
[395020851,1764341439237,-6450.06482858,0.000169,2]
[395020852,1764341439278,-3307.91099469,0.000169,2]
[395020853,1764341439315,-753.25136983,0.000169,2]
[395020856,1764341440057,-324.29218414,0.000169,2]
[395020857,1764341440068,-1540.0,0.000169,2]
[395020858,1764341440080,-8464.60989551,0.000169,2]
[395020859,1764341440091,-1298.82625658,0.000169,2]
[395020860,1764341440102,-830.98387891,0.000169,2]
[395020861,1764341440130,-327.84001672,0.000169,2]
[395020862,1764341440141,-7403.91417416,0.000169,2]
[395020863,1764341440152,-10449.37293902,0.000169,2]
[395020864,1764341440162,-354.46851287,0.000169,2]
[395020865,1764341440171,-502.78965489,0.00016973,2]
[395020866,1764341440182,-500.0,0.00016973,2]
[395020867,1764341440194,-500.78646462,0.00016973,2]
[395020868,1764341440204,-500.0,0.00016973,2]
[395020869,1764341440214,-506.66181472,0.00016973,2]
[395020870,1764341440224,-502.24336766,0.00016973,2]
[395020871,1764341440235,-205.91197979,0.00016973,2]
[395020872,1764341440244,-349.45107206,0.00016973,2]
[395020873,1764341440253,-151.0,0.00016976,2]
[395020874,1764341440263,-500.0,0.00016983,2]
[395020875,1764341440273,-150.0,0.00016986,2]
[395020876,1764341440282,-150.0,0.00016986,2]
[395020877,1764341440293,-150.0,0.0001699,2]
[395020878,1764341440302,-150.0,0.0001699,2]
[395020879,1764341440312,-150.0,0.0001699,2]
[395020880,1764341440321,-170.16025995,0.0001699,2]
[395020881,1764341440330,-150.0,0.0001699,2]
[395020882,1764341440340,-151.91077717,0.0001699,2]
[395020883,1764341440350,-150.0,0.0001699,2]
[395020884,1764341440359,-150.0,0.0001699,2]
[395020885,1764341440370,-150.0,0.0001699,2]
[395020886,1764341440379,-201.62347752,0.0001699,2]
[395020887,1764341440389,-150.0,0.0001699,2]
[395020888,1764341440398,-150.0,0.0001699,2]
[395020889,1764341440408,-151.06662226,0.0001699,2]
[395020890,1764341440418,-150.0,0.0001699,2]
[395020891,1764341440427,-150.0,0.0001699,2]
[395020892,1764341440436,-500.0,0.0001699,2]
[395020893,1764341440445,-150.0,0.0001699,2]
[395020894,1764341440455,-500.0,0.0001699,2]
[395020895,1764341440464,-150.0,0.0001699,2]
[395020896,1764341440473,-150.0,0.0001699,2]
[395020897,1764341440482,-500.0,0.0001699,2]
[395020898,1764341440491,-159.33028222,0.0001699,2]
[395020899,1764341440500,-150.0,0.0001699,2]
[395020900,1764341440509,-500.0,0.0001699,2]
[395020901,1764341440518,-150.0,0.0001699,2]
[395020902,1764341440528,-150.0,0.0001699,2]
[395020903,1764341440537,-1218.45664031,0.00016998,5]
[395020904,1764341440546,-248.27105681,0.00016998,2]
[395020905,1764341440555,-360.12591813,0.00016998,2]
[395020906,1764341440589,-139.87408187,0.00016998,2]
[395020907,1764341440598,-510.65348297,0.00016998,2]
[395020908,1764341440607,-375.15887857,0.00016998,2]
[395020909,1764341440615,-500.0,0.00016999,2]
[395020910,1764341440624,-500.0,0.00016999,2]
[395020911,1764341440633,-500.0,0.00016999,2]
[395020912,1764341440643,-251.0496658,0.00016999,2]
[395020913,1764341440654,-248.9503342,0.00016999,2]
[395020914,1764341440663,-500.0,0.00016999,2]
[395020915,1764341440673,-500.0,0.00016999,2]
[395020916,1764341440682,-500.0,0.00016999,2]
[395020917,1764341440691,-500.0,0.00016999,2]
[395020918,1764341440700,-500.0,0.00016999,2]
[395020919,1764341440709,-500.0,0.00016999,2]
[395020920,1764341440719,-500.0,0.00016999,2]
[395020921,1764341440728,-500.0,0.00016999,2]
[395020922,1764341440738,-500.0,0.00016999,2]
[395020923,1764341440748,-513.7967809,0.00016999,2]
[395020924,1764341440758,-500.0,0.00016999,2]
[395020925,1764341440767,-500.0,0.00016999,2]
[395020926,1764341440777,-500.0,0.00016999,2]
[395020927,1764341440787,-500.0,0.00016999,2]
[395020928,1764341440796,-500.0,0.00016999,2]
[395020929,1764341440805,-500.0,0.00016999,2]
[395020930,1764341440814,-500.0,0.00016999,2]
[395020931,1764341440823,-300.0,0.00016999,2]
[395020932,1764341440832,-500.0,0.00016999,2]
[395020933,1764341440841,-500.0,0.00016999,2]
[395020934,1764341440850,-500.0,0.00016999,2]
[395020935,1764341440860,-500.0,0.00016999,2]
[395020936,1764341440869,-500.0,0.00016999,2]
[395020937,1764341440878,-500.0,0.00016999,2]
[395020938,1764341440888,-500.0,0.00016999,2]
[395020939,1764341440898,-500.0,0.00016999,2]
[395020940,1764341440908,-571.54969762,0.00016999,2]
[395020941,1764341440918,-500.0,0.00016999,2]
[395020942,1764341440927,-500.0,0.00016999,2]
[395020943,1764341440936,-500.0,0.00016999,2]
[395020944,1764341440945,-397.19283418,0.00016999,2]
[395020945,1764341440954,-2497.0,0.00017,2]
[395020946,1764341440964,-18800.95035312,0.00017,2]
[395021011,1764341443065,-245106.8310965,0.00017,2]
[395021012,1764341443079,-887212.39303516,0.00017,2]
[395021013,1764341443090,-834520.89585576,0.00017,2]
[395021014,1764341443148,-1853.79215998,0.00017,2]
[395021015,1764341443159,-429.18375503,0.00017,2]
[395021017,1764341446157,-220.88055288,0.000169,2]
[395021018,1764341446167,-1397.93120449,0.00017,2]
[395021019,1764341446198,-23062.1589679,0.00017,2]
[395021022,1764341787848,163.0,0.0001699,90]
[395021031,1764342149535,534.8,0.0002,30]
[395021033,1764342310234,370.0,0.000204,120]
[395021034,1764342311748,370.0,0.0002142,120]
[395021035,1764342312829,370.0,0.00022491,120]
[395021036,1764342314322,370.0,0.00023616,120]
[395021037,1764342315623,370.0,0.00024796,120]
[395021966,1764342608526,164.0,0.00022413,120]
[395021967,1764342610080,164.0,0.00023534,120]
[395021968,1764342611414,164.0,0.00024711,120]
[395021988,1764342632098,-150.0,0.00015288,2]
[395021989,1764342632107,-2120.0883287,0.00015754,2]
[395021990,1764342632118,-115.5680946,0.00015766,2]
[395021991,1764342632151,-2635.4319054,0.00015766,2]
[395021992,1764342632161,-1151.0,0.00015768,2]
[395021993,1764342632170,-2091.86484932,0.00015769,2]
[395021994,1764342638056,-2226.3030888,0.00015769,2]
[395021995,1764342638068,-948.82206188,0.00015769,2]
[395021996,1764342638079,-200.0,0.00015885,2]
[395021997,1764342638088,-300.0,0.00015935,2]
[395021998,1764342638098,-905.4035857,0.00015936,2]
[395022015,1764342640528,-1094.5964143,0.00015936,2]
[395022016,1764342640537,-477.99320169,0.00016121,2]
[395022029,1764342643346,-344.38496351,0.00016121,2]
[395022030,1764342643357,-2056.6618348,0.00016121,2]
[395022031,1764342643367,-984.58,0.0001614,2]
[395022032,1764342643377,-578.20924308,0.00016149,2]
[395022033,1764342643386,-1000.0,0.00016201,2]
[395022034,1764342643395,-166.66,0.00016211,2]
[395022035,1764342643405,-568.54757568,0.00016217,2]
[395022036,1764342643415,-267.46074303,0.00016217,2]
[395022037,1764342643425,-151.0,0.00016217,2]
[395022038,1764342643435,-300.0,0.00016217,2]
[395022039,1764342643444,-1418.63530879,0.00016217,2]
[395022040,1764342643455,-151.0,0.00016217,2]
[395022041,1764342643464,-749.48825077,0.00016217,2]
[395022042,1764342643475,-4043.61,0.00016227,2]
[395022043,1764342643487,-1991.14,0.00016227,2]
[395022044,1764342643496,-6579.94,0.00016227,2]
[395022045,1764342643506,-150.99,0.00016227,2]
[395022046,1764342643517,-9999.99,0.00016227,2]
[395022047,1764342643527,-10769.64,0.00016227,2]
[395022048,1764342643536,-500.0,0.00016273,2]
[395022049,1764342643545,-166.66,0.00016348,2]
[395022050,1764342643555,-166.66,0.00016693,2]
[395022051,1764342643564,-151.0,0.00016765,2]
[395022052,1764342643573,-151.0,0.00016765,2]
[395022053,1764342643583,-1000.0,0.00016821,2]
[395022054,1764342643592,-242.18,0.0001683,2]
[395022055,1764342643602,-2675.13643,0.0001683,2]
[395022056,1764342643611,-157.06603687,0.000169,2]
[395022057,1764342643620,-902.7138175,0.000169,2]
[395022058,1764342643629,-164.53491855,0.000169,2]
[395022059,1764342643639,-165.07557829,0.00016973,2]
[395022060,1764342643648,-500.0,0.00016973,2]
[395022061,1764342643657,-500.0,0.00016973,2]
[395022062,1764342643667,-501.93989695,0.00016973,2]
[395022063,1764342643677,-500.0,0.00016973,2]
[395022064,1764342643689,-500.0,0.00016973,2]
[395022065,1764342643699,-502.59114496,0.00016973,2]
[395022066,1764342643709,-315.0,0.00016979,2]
[395022067,1764342643718,-421.48162628,0.00016979,2]
[395022068,1764342643728,-500.0,0.0001698,2]
[395022069,1764342643738,-500.0,0.0001698,2]
[395022070,1764342643747,-500.0,0.0001698,2]
[395022071,1764342643756,-500.0,0.0001698,2]
[395022072,1764342643766,-500.0,0.0001698,2]
[395022073,1764342643775,-151.0,0.0001698,2]
[395022074,1764342643785,-500.0,0.0001698,2]
[395022075,1764342643794,-201.93286099,0.0001698,2]
[395022076,1764342643804,-500.0,0.0001698,2]
[395022077,1764342643813,-151.0,0.0001698,2]